fUST/lending_fUST_20250915
["ID","MTS","AMOUNT","RATE_DAILY","PERIOD"]
[385490076,1757877044724,-480.0,0.00022739,3]
[385490078,1757877044734,-480.0,0.00022739,3]
[385490080,1757877044743,-858.02,0.00022739,3]
[385490082,1757877044753,-480.0,0.00022739,3]
[385490084,1757877044763,-632.83,0.00022739,3]
[385490086,1757877044773,-837.8,0.00022739,3]
[385490088,1757877044783,-480.0,0.00022739,3]
[385490090,1757877044793,-480.0,0.00022739,3]
[385490092,1757877044803,-480.0,0.00022739,3]
[385490094,1757877044812,-480.0,0.00022739,3]
[385490096,1757877044821,-814.82,0.00022739,3]
[385490098,1757877044830,-568.12903389,0.00022739,3]
[385490100,1757877044838,-480.0,0.00022739,3]
[385490102,1757877044848,-480.0,0.00022739,3]
[385490104,1757877044857,-567.42,0.00022739,3]
[385490106,1757877044866,-284.82748106,0.00022739,3]
[385490107,1757877044876,-546.0,0.00022739,3]
[385490110,1757877044887,-480.0,0.00022739,3]
[385490112,1757877044897,-480.0,0.00022739,3]
[385490114,1757877044906,-480.0,0.00022739,3]
[385490116,1757877044916,-480.0,0.00022739,3]
[385490118,1757877044925,-480.0,0.00022739,3]
[385490120,1757877044935,-300.0,0.00022739,2]
[385490122,1757877044944,-2019.93,0.00022739,3]
[385490123,1757877044953,-855.15,0.00022739,3]
[385490125,1757877044962,-480.0,0.00022739,3]
[385490128,1757877044972,-732.55,0.00022739,3]
[385490130,1757877044983,-2689.79,0.00022739,3]
[385490132,1757877044992,-2800.76,0.00022739,3]
[385490134,1757877045001,-480.0,0.00022739,3]
[385490135,1757877045013,-16167.6,0.00022739,3]
[385490136,1757877045023,-2168.23,0.00022739,3]
[385490137,1757877045033,-480.0,0.00022739,3]
[385490138,1757877045042,-622.19,0.00022739,3]
[385490139,1757877045053,-866.6,0.00022739,3]
[385490140,1757877045062,-563.52,0.00022739,3]
[385490141,1757877045071,-941.35,0.00022739,3]
[385490142,1757877045082,-480.0,0.00022739,3]
[385490143,1757877045091,-764.63,0.00022739,3]
[385490144,1757877045100,-817.03,0.00022739,3]
[385490145,1757877045109,-504.77,0.00022739,3]
[385490146,1757877045118,-480.0,0.00022739,3]
[385490147,1757877045128,-928.98,0.00022739,3]
[385490148,1757877045137,-1592.07,0.00022739,3]
[385490149,1757877045146,-1675.96,0.00022739,3]
[385490150,1757877045155,-726.58,0.00022739,3]
[385490151,1757877045164,-480.0,0.00022739,3]
[385490152,1757877045174,-480.0,0.00022739,3]
[385490153,1757877045183,-480.0,0.00022739,3]
[385490154,1757877045193,-480.0,0.00022739,3]
[385490156,1757877045202,-541.97,0.00022739,3]
[385490157,1757877045211,-879.17,0.00022739,3]
[385490159,1757877045222,-757.71,0.00022739,3]
[385490161,1757877045231,-480.0,0.00022739,3]
[385490163,1757877045241,-543.29,0.00022739,3]
[385490165,1757877045250,-480.0,0.00022739,3]
[385490167,1757877045260,-706.91,0.00022739,3]
[385490169,1757877045269,-480.0,0.00022739,3]
[385490171,1757877045278,-480.0,0.00022739,3]
[385490173,1757877045287,-1250.06,0.00022739,3]
[385490176,1757877045298,-661.82,0.00022739,3]
[385490177,1757877045307,-480.0,0.00022739,3]
[385490179,1757877045317,-9477.66,0.00022739,3]
[385490182,1757877045327,-480.0,0.00022739,3]
[385490184,1757877045337,-1921.95,0.00022739,3]
[385490186,1757877045346,-1853.35,0.00022739,3]
[385490188,1757877045356,-1058.63,0.00022739,3]
[385490190,1757877045365,-1565.15,0.00022739,3]
[385490192,1757877045374,-506.43,0.00022739,3]
[385490194,1757877045383,-480.0,0.00022739,3]
[385490196,1757877045393,-1534.41,0.00022739,3]
[385490198,1757877045402,-1832.4,0.00022739,3]
[385490200,1757877045412,-814.23,0.00022739,3]
[385490202,1757877045421,-772.91,0.00022739,3]
[385490204,1757877045431,-480.0,0.00022739,3]
[385490206,1757877045441,-1002.67,0.00022739,3]
[385490208,1757877045450,-480.0,0.00022739,3]
[385490210,1757877045460,-3789.53,0.00022739,3]
[385490212,1757877045469,-1034.75,0.00022739,3]
[385490214,1757877045478,-885.75,0.00022739,3]
[385490216,1757877045487,-1540.97,0.00022739,3]
[385490218,1757877045497,-4740.96,0.00022739,3]
[385490220,1757877045507,-1038.93,0.00022739,3]
[385490222,1757877045516,-480.0,0.00022739,3]
[385490224,1757877045525,-525.87,0.00022739,3]
[385490226,1757877045534,-480.0,0.00022739,3]
[385490228,1757877045543,-633.24,0.00022739,3]
[385490229,1757877045554,-4536.39,0.00022739,3]
[385490231,1757877045564,-1940.22,0.00022739,3]
[385490233,1757877045573,-658.63,0.00022739,3]
[385490235,1757877045581,-480.0,0.00022739,3]
[385490237,1757877045591,-2789.11,0.00022739,3]
[385490239,1757877045600,-480.0,0.00022739,3]
[385490241,1757877045609,-480.0,0.00022739,3]
[385490243,1757877045618,-480.0,0.00022739,3]
[385490245,1757877045627,-1043.48,0.00022739,3]
[385490247,1757877045637,-4184.583654,0.0002274,2]
[385490249,1757877045646,-666.0,0.00022741,2]
[385490251,1757877045655,-3823.51271887,0.00022798,2]
[385490253,1757877045664,-5000.0,0.00022841,2]
[385490255,1757877045674,-666.0,0.00022975,2]
[385490257,1757877045683,-2000.0,0.00023,2]
[385490259,1757877045693,-1000.0,0.00023,2]
[385490261,1757877045702,-217.77739939,0.00023,3]
[385490263,1757877045711,-1193.0,0.00023013,2]
[385490265,1757877045720,-151.0,0.00023013,2]
[385490267,1757877045729,-151.0,0.00023013,2]
[385490269,1757877045738,-163.0,0.00023013,2]
[385490271,1757877045748,-200.31691441,0.00023013,2]
[385490273,1757877045757,-598.16985905,0.00023013,2]
[385490275,1757877045766,-209.0,0.00023013,2]
[385490277,1757877045776,-209.0,0.00023013,2]
[385490279,1757877045784,-209.0,0.00023013,2]
[385490281,1757877045793,-209.0,0.00023013,2]
[385490283,1757877045802,-209.0,0.00023013,2]
[385490285,1757877045811,-209.0,0.00023013,2]
[385490287,1757877045821,-209.0,0.00023013,2]
[385490289,1757877045830,-209.0,0.00023013,2]
[385490291,1757877045840,-209.0,0.00023013,2]
[385490293,1757877045850,-209.0,0.00023013,2]
[385490295,1757877045859,-209.0,0.00023013,2]
[385490297,1757877045869,-480.0,0.00023013,3]
[385490299,1757877045878,-566.41,0.00023013,3]
[385490301,1757877045888,-514.79,0.00023013,3]
[385490303,1757877045897,-480.0,0.00023013,3]
[385490305,1757877045906,-602.82,0.00023013,3]
[385490307,1757877045916,-480.0,0.00023013,3]
[385490309,1757877045925,-1158.34,0.00023013,3]
[385490310,1757877045934,-579.14,0.00023013,3]
[385490313,1757877045944,-256.94138163,0.00023013,3]
[385490315,1757877045954,-480.0,0.00023013,3]
[385490316,1757877045963,-684.57,0.00023013,3]
[385490319,1757877045973,-593.18,0.00023013,3]
[385490321,1757877045982,-600.47,0.00023013,3]
[385490322,1757877045992,-480.4,0.00023013,3]
[385490324,1757877046001,-480.0,0.00023013,3]
[385490326,1757877046011,-738.38,0.00023013,3]
[385490328,1757877046020,-1279.6,0.00023013,3]
[385490330,1757877046030,-480.0,0.00023013,3]
[385490332,1757877046039,-520.43,0.00023013,3]
[385490334,1757877046048,-480.0,0.00023013,3]
[385490336,1757877046058,-480.0,0.00023013,3]
[385490338,1757877046068,-480.0,0.00023013,3]
[385490340,1757877046077,-654.7,0.00023013,3]
[385490342,1757877046086,-480.0,0.00023013,3]
[385490344,1757877046096,-665.86,0.00023013,3]
[385490346,1757877046105,-480.0,0.00023013,3]
[385490348,1757877046115,-480.0,0.00023013,3]
[385490350,1757877046124,-858.02,0.00023013,3]
[385490352,1757877046133,-480.0,0.00023013,3]
[385490354,1757877046143,-632.83,0.00023013,3]
[385490356,1757877046152,-837.8,0.00023013,3]
[385490358,1757877046161,-480.0,0.00023013,3]
[385490360,1757877046170,-480.0,0.00023013,3]
[385490362,1757877046179,-480.0,0.00023013,3]
[385490364,1757877046188,-480.0,0.00023013,3]
[385490366,1757877046198,-814.82,0.00023013,3]
[385490368,1757877046207,-480.0,0.00023013,3]
[385490370,1757877046217,-480.0,0.00023013,3]
[385490372,1757877046226,-567.42,0.00023013,3]
[385490374,1757877046236,-546.0,0.00023013,3]
[385490376,1757877046245,-480.0,0.00023013,3]
[385490378,1757877046255,-480.0,0.00023013,3]
[385490380,1757877046264,-480.0,0.00023013,3]
[385490382,1757877046274,-480.0,0.00023013,3]
[385490384,1757877046283,-480.0,0.00023013,3]
[385490386,1757877046293,-300.0,0.00023013,2]
[385490388,1757877046302,-2019.93,0.00023013,3]
[385490390,1757877046311,-855.15,0.00023013,3]
[385490392,1757877046320,-480.0,0.00023013,3]
[385490394,1757877046329,-732.55,0.00023013,3]
[385490396,1757877046339,-2689.79,0.00023013,3]
[385490398,1757877046348,-2800.76,0.00023013,3]
[385490400,1757877046358,-480.0,0.00023013,3]
[385490402,1757877046367,-16167.6,0.00023013,3]
[385490404,1757877046376,-2168.23,0.00023013,3]
[385490406,1757877046386,-480.0,0.00023013,3]
[385490408,1757877046395,-622.19,0.00023013,3]
[385490410,1757877046405,-866.6,0.00023013,3]
[385490412,1757877046414,-563.52,0.00023013,3]
[385490414,1757877046423,-941.35,0.00023013,3]
[385490416,1757877046433,-480.0,0.00023013,3]
[385490418,1757877046442,-764.63,0.00023013,3]
[385490420,1757877046451,-817.03,0.00023013,3]
[385490422,1757877046460,-504.77,0.00023013,3]
[385490424,1757877046469,-480.0,0.00023013,3]
[385490426,1757877046478,-928.98,0.00023013,3]
[385490428,1757877046487,-1592.07,0.00023013,3]
[385490430,1757877046497,-1675.96,0.00023013,3]
[385490432,1757877046506,-726.58,0.00023013,3]
[385490434,1757877046515,-480.0,0.00023013,3]
[385490436,1757877046524,-480.0,0.00023013,3]
[385490438,1757877046534,-480.0,0.00023013,3]
[385490440,1757877046543,-480.0,0.00023013,3]
[385490442,1757877046556,-541.97,0.00023013,3]
[385490444,1757877046565,-879.17,0.00023013,3]
[385490446,1757877046574,-757.71,0.00023013,3]
[385490448,1757877046583,-480.0,0.00023013,3]
[385490450,1757877046592,-543.29,0.00023013,3]
[385490452,1757877046602,-480.0,0.00023013,3]
[385490454,1757877046611,-706.91,0.00023013,3]
[385490456,1757877046620,-480.0,0.00023013,3]
[385490458,1757877046629,-480.0,0.00023013,3]
[385490459,1757877046639,-1250.06,0.00023013,3]
[385490461,1757877046648,-661.82,0.00023013,3]
[385490464,1757877046658,-603.67929213,0.00023013,3]
[385490466,1757877046667,-9477.66,0.00023013,3]
[385490468,1757877046676,-480.0,0.00023013,3]
[385490470,1757877046686,-1921.95,0.00023013,3]
[385490472,1757877046695,-1853.35,0.00023013,3]
[385490474,1757877046705,-1058.63,0.00023013,3]
[385490476,1757877046714,-1565.15,0.00023013,3]
[385490478,1757877046723,-506.43,0.00023013,3]
[385490480,1757877046732,-480.0,0.00023013,3]
[385490482,1757877046741,-1534.41,0.00023013,3]
[385490484,1757877046751,-1832.4,0.00023013,3]
[385490486,1757877046760,-814.23,0.00023013,3]
[385490488,1757877046769,-772.91,0.00023013,3]
[385490490,1757877046779,-480.0,0.00023013,3]
[385490492,1757877046788,-1002.67,0.00023013,3]
[385490494,1757877046797,-480.0,0.00023013,3]
[385490496,1757877046806,-3789.53,0.00023013,3]
[385490498,1757877046816,-1034.75,0.00023013,3]
[385490500,1757877046825,-885.75,0.00023013,3]
[385490501,1757877046834,-1540.97,0.00023013,3]
[385490504,1757877046844,-4740.96,0.00023013,3]
[385490506,1757877046854,-1038.93,0.00023013,3]
[385490508,1757877046863,-480.0,0.00023013,3]
[385490510,1757877046873,-525.87,0.00023013,3]
[385490512,1757877046882,-480.0,0.00023013,3]
[385490514,1757877046891,-633.24,0.00023013,3]
[385490516,1757877046900,-4536.39,0.00023013,3]
[385490517,1757877046909,-1940.22,0.00023013,3]
[385490519,1757877046919,-658.63,0.00023013,3]
[385490520,1757877046928,-480.0,0.00023013,3]
[385490521,1757877046937,-2789.11,0.00023013,3]
[385490522,1757877046946,-480.0,0.00023013,3]
[385490523,1757877046955,-480.0,0.00023013,3]
[385490524,1757877046964,-480.0,0.00023013,3]
[385490525,1757877046973,-1500.0,0.00023036,2]
[385490526,1757877046982,-1500.0,0.00023036,2]
[385490527,1757877046991,-1021.33749465,0.00023036,2]
[385490528,1757877047000,-551.62,0.00023053,2]
[385490529,1757877047009,-500.0,0.00023057,2]
[385490530,1757877047018,-501.62793363,0.00023068,2]
[385490531,1757877047027,-1500.0,0.00023068,2]
[385490532,1757877047035,-1500.0,0.00023068,2]
[385490533,1757877047044,-254.05330389,0.00023068,2]
[385490534,1757877047053,-1500.0,0.00023068,2]
[385490535,1757877047062,-1500.0,0.00023068,2]
[385490536,1757877047072,-1000.0,0.00023068,2]
[385490537,1757877047081,-1024.57812727,0.00023068,2]
[385490538,1757877047090,-1500.0,0.00023068,2]
[385490539,1757877047099,-666.0,0.00023106,2]
[385490540,1757877047108,-186.86257978,0.00023112,2]
[385490541,1757877047247,-420.0,0.00023174,2]
[385490542,1757877047258,-500.0,0.00023178,2]
[385490543,1757877047267,-500.0,0.00023178,2]
[385490544,1757877047278,-151.0,0.00023184,3]
[385490545,1757877047287,-666.0,0.00023196,2]
[385490546,1757877047296,-666.0,0.00023222,2]
[385490547,1757877047305,-666.0,0.00023225,2]
[385490548,1757877047314,-1500.0,0.00023226,2]
[385490549,1757877047323,-1500.0,0.00023226,2]
[385490550,1757877047332,-666.0,0.00023238,2]
[385490551,1757877047341,-1193.0,0.00023287,2]
[385490552,1757877047351,-169.57383559,0.00023287,2]
[385490553,1757877047361,-189.29891301,0.00023287,2]
[385490554,1757877047370,-480.0,0.00023287,3]
[385490555,1757877047379,-566.41,0.00023287,3]
[385490556,1757877047388,-409.28956332,0.00023287,2]
[385490557,1757877047397,-514.79,0.00023287,3]
[385490558,1757877047406,-480.0,0.00023287,3]
[385490559,1757877047415,-602.82,0.00023287,3]
[385490560,1757877047424,-480.0,0.00023287,3]
[385490561,1757877047434,-1158.34,0.00023287,3]
[385490562,1757877047443,-579.14,0.00023287,3]
[385490563,1757877047452,-480.0,0.00023287,3]
[385490564,1757877047462,-684.57,0.00023287,3]
[385490565,1757877047471,-593.18,0.00023287,3]
[385490566,1757877047480,-600.47,0.00023287,3]
[385490567,1757877047489,-480.4,0.00023287,3]
[385490568,1757877047498,-480.0,0.00023287,3]
[385490569,1757877047508,-738.38,0.00023287,3]
[385490570,1757877047516,-1279.6,0.00023287,3]
[385490571,1757877047526,-480.0,0.00023287,3]
[385490572,1757877047535,-520.43,0.00023287,3]
[385490573,1757877047544,-480.0,0.00023287,3]
[385490574,1757877047558,-480.0,0.00023287,3]
[385490575,1757877047567,-480.0,0.00023287,3]
[385490576,1757877047576,-654.7,0.00023287,3]
[385490577,1757877047586,-480.0,0.00023287,3]
[385490578,1757877047594,-665.86,0.00023287,3]
[385490579,1757877047604,-480.0,0.00023287,3]
[385490580,1757877047613,-480.0,0.00023287,3]
[385490581,1757877047622,-858.02,0.00023287,3]
[385490582,1757877047632,-480.0,0.00023287,3]
[385490583,1757877047642,-632.83,0.00023287,3]
[385490584,1757877047651,-837.8,0.00023287,3]
[385490585,1757877047661,-480.0,0.00023287,3]
[385490586,1757877047671,-480.0,0.00023287,3]
[385490587,1757877047680,-480.0,0.00023287,3]
[385490588,1757877047690,-480.0,0.00023287,3]
[385490589,1757877047699,-814.82,0.00023287,3]
[385490590,1757877047710,-480.0,0.00023287,3]
[385490591,1757877047719,-480.0,0.00023287,3]
[385490592,1757877047729,-567.42,0.00023287,3]
[385490593,1757877047739,-546.0,0.00023287,3]
[385490594,1757877047748,-480.0,0.00023287,3]
[385490595,1757877047757,-480.0,0.00023287,3]
[385490596,1757877047767,-480.0,0.00023287,3]
[385490597,1757877047777,-480.0,0.00023287,3]
[385490598,1757877047787,-480.0,0.00023287,3]
[385490599,1757877047796,-300.0,0.00023287,2]
[385490600,1757877047806,-2019.93,0.00023287,3]
[385490601,1757877047815,-855.15,0.00023287,3]
[385490602,1757877047825,-480.0,0.00023287,3]
[385490603,1757877047834,-732.55,0.00023287,3]
[385490604,1757877047843,-2689.79,0.00023287,3]
[385490605,1757877047854,-2800.76,0.00023287,3]
[385490606,1757877047863,-480.0,0.00023287,3]
[385490607,1757877047873,-16167.6,0.00023287,3]
[385490608,1757877047882,-2168.23,0.00023287,3]
[385490609,1757877047892,-480.0,0.00023287,3]
[385490610,1757877047901,-622.19,0.00023287,3]
[385490611,1757877047911,-866.6,0.00023287,3]
[385490612,1757877047920,-563.52,0.00023287,3]
[385490613,1757877047930,-941.35,0.00023287,3]
[385490614,1757877047939,-480.0,0.00023287,3]
[385490615,1757877047949,-764.63,0.00023287,3]
[385490616,1757877047959,-817.03,0.00023287,3]
[385490617,1757877047968,-504.77,0.00023287,3]
[385490618,1757877047977,-480.0,0.00023287,3]
[385490619,1757877047987,-928.98,0.00023287,3]
[385490620,1757877047996,-1592.07,0.00023287,3]
[385490621,1757877048006,-1675.96,0.00023287,3]
[385490622,1757877048015,-726.58,0.00023287,3]
[385490623,1757877048025,-480.0,0.00023287,3]
[385490624,1757877048035,-480.0,0.00023287,3]
[385490625,1757877048045,-480.0,0.00023287,3]
[385490626,1757877048055,-480.0,0.00023287,3]
[385490627,1757877048065,-541.97,0.00023287,3]
[385490628,1757877048075,-879.17,0.00023287,3]
[385490629,1757877048086,-757.71,0.00023287,3]
[385490630,1757877048096,-480.0,0.00023287,3]
[385490631,1757877048106,-543.29,0.00023287,3]
[385490632,1757877048116,-480.0,0.00023287,3]
[385490633,1757877048126,-706.91,0.00023287,3]
[385490634,1757877048135,-480.0,0.00023287,3]
[385490635,1757877048146,-480.0,0.00023287,3]
[385490636,1757877048157,-1250.06,0.00023287,3]
[385490637,1757877048166,-661.82,0.00023287,3]
[385490638,1757877048176,-9477.66,0.00023287,3]
[385490639,1757877048185,-480.0,0.00023287,3]
[385490640,1757877048197,-1921.95,0.00023287,3]
[385490641,1757877048207,-1853.35,0.00023287,3]
[385490642,1757877048217,-1058.63,0.00023287,3]
[385490643,1757877048227,-1565.15,0.00023287,3]
[385490644,1757877048237,-506.43,0.00023287,3]
[385490645,1757877048247,-480.0,0.00023287,3]
[385490646,1757877048256,-1534.41,0.00023287,3]
[385490647,1757877048266,-1832.4,0.00023287,3]
[385490648,1757877048276,-814.23,0.00023287,3]
[385490649,1757877048286,-772.91,0.00023287,3]
[385490650,1757877048295,-480.0,0.00023287,3]
[385490651,1757877048305,-1002.67,0.00023287,3]
[385490652,1757877048315,-480.0,0.00023287,3]
[385490653,1757877048325,-3789.53,0.00023287,3]
[385490654,1757877048334,-1034.75,0.00023287,3]
[385490655,1757877048344,-885.75,0.00023287,3]
[385490657,1757877048353,-1540.97,0.00023287,3]
[385490659,1757877048362,-4740.96,0.00023287,3]
[385490660,1757877048372,-1038.93,0.00023287,3]
[385490662,1757877048381,-480.0,0.00023287,3]
[385490663,1757877048392,-500.0,0.00023287,2]
[385490664,1757877048402,-525.87,0.00023287,3]
[385490665,1757877048411,-480.0,0.00023287,3]
[385490666,1757877048421,-633.24,0.00023287,3]
[385490667,1757877048431,-4536.39,0.00023287,3]
[385490668,1757877048440,-1940.22,0.00023287,3]
[385490669,1757877048450,-658.63,0.00023287,3]
[385490670,1757877048460,-480.0,0.00023287,3]
[385490671,1757877048470,-2789.11,0.00023287,3]
[385490672,1757877048480,-480.0,0.00023287,3]
[385490673,1757877048490,-480.0,0.00023287,3]
[385490674,1757877048499,-480.0,0.00023287,3]
[385490675,1757877048509,-666.0,0.00023327,2]
[385490676,1757877048519,-541.30234502,0.00023331,2]
[385490677,1757877048537,-500.0,0.00023331,2]
[385490678,1757877048585,-500.0,0.00023331,2]
[385490679,1757877048600,-500.0,0.00023331,2]
[385490680,1757877048611,-160.0,0.00023333,2]
[385490681,1757877048623,-151.0,0.00023373,3]
[385490682,1757877048636,-501.4894832,0.00023495,2]
[385490683,1757877048647,-501.76531383,0.00023495,2]
[385490684,1757877048657,-500.0,0.00023496,2]
[385490685,1757877048668,-500.0,0.00023496,2]
[385490686,1757877048679,-2000.0,0.000235,2]
[385490687,1757877048689,-2000.0,0.000235,2]
[385490688,1757877048700,-1000.0,0.000235,2]
[385490689,1757877048710,-500.0,0.00023508,2]
[385490690,1757877048720,-500.0,0.00023511,2]
[385490691,1757877048729,-666.0,0.00023512,2]
[385490692,1757877048739,-500.0,0.00023514,2]
[385490693,1757877048748,-500.0,0.00023514,2]
[385490694,1757877048757,-500.0,0.00023514,2]
[385490695,1757877048767,-500.0,0.00023514,2]
[385490696,1757877048776,-500.0,0.00023514,2]
[385490697,1757877048786,-500.0,0.00023514,2]
[385490698,1757877048795,-500.0,0.00023514,2]
[385490699,1757877048804,-500.0,0.00023514,2]
[385490700,1757877048813,-500.0,0.00023514,2]
[385490701,1757877048823,-500.0,0.00023514,2]
[385490702,1757877048832,-500.0,0.00023514,2]
[385490703,1757877048841,-500.0,0.00023514,2]
[385490704,1757877048851,-500.0,0.00023514,2]
[385490705,1757877048860,-500.0,0.00023514,2]
[385490706,1757877048869,-501.73394212,0.00023514,2]
[385490707,1757877048879,-500.0,0.00023514,2]
[385490708,1757877048888,-258.65708178,0.00023519,2]
[385490709,1757877048897,-500.0,0.00023526,2]
[385490710,1757877048907,-500.0,0.00023526,2]
[385490711,1757877048916,-500.0,0.00023526,2]
[385490712,1757877048926,-500.0,0.00023526,2]
[385490713,1757877048937,-500.0,0.0002356,2]
[385490714,1757877048946,-1193.0,0.00023561,2]
[385490715,1757877048956,-480.0,0.00023561,3]
[385490716,1757877048965,-566.41,0.00023561,3]
[385490717,1757877048975,-200.0,0.00023561,2]
[385490718,1757877048984,-233.52,0.00023561,3]
[385490719,1757877048993,-514.79,0.00023561,3]
[385490720,1757877049003,-480.0,0.00023561,3]
[385490721,1757877049012,-602.82,0.00023561,3]
[385490722,1757877049021,-480.0,0.00023561,3]
[385490723,1757877049030,-1158.34,0.00023561,3]
[385490724,1757877049040,-579.14,0.00023561,3]
[385490725,1757877049049,-480.0,0.00023561,3]
[385490726,1757877049059,-684.57,0.00023561,3]
[385490727,1757877049068,-593.18,0.00023561,3]
[385490728,1757877049077,-600.47,0.00023561,3]
[385490729,1757877049086,-480.4,0.00023561,3]
[385490730,1757877049095,-480.0,0.00023561,3]
[385490731,1757877049105,-738.38,0.00023561,3]
[385490732,1757877049114,-1279.6,0.00023561,3]
[385490733,1757877049124,-480.0,0.00023561,3]
[385490734,1757877049133,-520.43,0.00023561,3]
[385490735,1757877049142,-480.0,0.00023561,3]
[385490736,1757877049151,-480.0,0.00023561,3]
[385490737,1757877049160,-480.0,0.00023561,3]
[385490738,1757877049170,-654.7,0.00023561,3]
[385490739,1757877049179,-480.0,0.00023561,3]
[385490740,1757877049189,-665.86,0.00023561,3]
[385490741,1757877049198,-480.0,0.00023561,3]
[385490742,1757877049208,-480.0,0.00023561,3]
[385490743,1757877049217,-858.02,0.00023561,3]
[385490744,1757877049227,-480.0,0.00023561,3]
[385490745,1757877049236,-632.83,0.00023561,3]
[385490746,1757877049246,-837.8,0.00023561,3]
[385490747,1757877049254,-480.0,0.00023561,3]
[385490748,1757877049263,-480.0,0.00023561,3]
[385490749,1757877049273,-383.11968004,0.00023561,3]
[385490750,1757877049283,-480.0,0.00023561,3]
[385490751,1757877049292,-151.0,0.00023561,3]
[385490752,1757877049302,-814.82,0.00023561,3]
[385490753,1757877049312,-480.0,0.00023561,3]
[385490754,1757877049321,-480.0,0.00023561,3]
[385490755,1757877049331,-567.42,0.00023561,3]
[385490756,1757877049340,-546.0,0.00023561,3]
[385490757,1757877049349,-480.0,0.00023561,3]
[385490758,1757877049359,-480.0,0.00023561,3]
[385490759,1757877049368,-480.0,0.00023561,3]
[385490760,1757877049378,-480.0,0.00023561,3]
[385490761,1757877049387,-480.0,0.00023561,3]
[385490762,1757877049398,-300.0,0.00023561,2]
[385490763,1757877049407,-2019.93,0.00023561,3]
[385490764,1757877049416,-855.15,0.00023561,3]
[385490765,1757877049425,-480.0,0.00023561,3]
[385490766,1757877049435,-732.55,0.00023561,3]
[385490767,1757877049446,-2689.79,0.00023561,3]
[385490768,1757877049455,-2800.76,0.00023561,3]
[385490769,1757877049464,-480.0,0.00023561,3]
[385490770,1757877049474,-16167.6,0.00023561,3]
[385490771,1757877049483,-2168.23,0.00023561,3]
[385490772,1757877049492,-480.0,0.00023561,3]
[385490773,1757877049501,-622.19,0.00023561,3]
[385490774,1757877049511,-866.6,0.00023561,3]
[385490775,1757877049520,-563.52,0.00023561,3]
[385490776,1757877049529,-941.35,0.00023561,3]
[385490777,1757877049538,-480.0,0.00023561,3]
[385490778,1757877049547,-764.63,0.00023561,3]
[385490779,1757877049557,-817.03,0.00023561,3]
[385490780,1757877049566,-504.77,0.00023561,3]
[385490781,1757877049575,-480.0,0.00023561,3]
[385490782,1757877049584,-928.98,0.00023561,3]
[385490783,1757877049593,-1592.07,0.00023561,3]
[385490784,1757877049602,-1675.96,0.00023561,3]
[385490785,1757877049611,-726.58,0.00023561,3]
[385490786,1757877049619,-480.0,0.00023561,3]
[385490787,1757877049629,-480.0,0.00023561,3]
[385490788,1757877049639,-480.0,0.00023561,3]